[Event "*** Titled Tuesday Blitz"]
[Site "Chess.com"]
[Date "2020.05.12"]
[Round "3"]
[White "GasconJR"]
[Black "talaicito"]
[Result "1-0"]
[WhiteElo "2497"]
[BlackElo "2231"]
[TimeControl "180+1"]
[EndTime "10:27:33 PDT"]
[Termination "GasconJR won on time"]

1. d3 {[%clk 0:02:56.3]} 1... e5 {[%clk 0:02:58.9]} 2. c4 {[%clk 0:02:56.5]}
2... f5 {[%clk 0:02:58.3]} 3. Nc3 {[%clk 0:02:56.4]} 3... Nf6 {[%clk 0:02:57.8]}
4. g3 {[%clk 0:02:56.4]} 4... Bc5 {[%clk 0:02:52.1]} 5. Bg2 {[%clk 0:02:55.9]}
5... O-O {[%clk 0:02:52.1]} 6. Nf3 {[%clk 0:02:53.1]} 6... d6 {[%clk 0:02:50.3]}
7. O-O {[%clk 0:02:51.3]} 7... Kh8 {[%clk 0:02:48.3]} 8. Bg5 {[%clk 0:02:48.4]}
8... Qe8 {[%clk 0:02:26.3]} 9. Bxf6 {[%clk 0:02:36.6]} 9... gxf6 {[%clk
0:02:19.3]} 10. d4 {[%clk 0:02:36]} 10... Bb4 {[%clk 0:02:14]} 11. Nd5 {[%clk
0:02:35.8]} 11... Ba5 {[%clk 0:02:12.2]} 12. b4 {[%clk 0:02:35.9]} 12... c6
{[%clk 0:02:03]} 13. Nxf6 {[%clk 0:02:17.8]} 13... Rxf6 {[%clk 0:02:01.9]} 14.
dxe5 {[%clk 0:02:14.3]} 14... dxe5 {[%clk 0:02:00.3]} 15. bxa5 {[%clk
0:02:12.1]} 15... Na6 {[%clk 0:01:45.5]} 16. Qd2 {[%clk 0:02:03.3]} 16... e4
{[%clk 0:01:33.8]} 17. Qc3 {[%clk 0:01:59.8]} 17... Kg7 {[%clk 0:01:29]} 18. Ne5
{[%clk 0:01:46.9]} 18... Qe7 {[%clk 0:00:43.3]} 19. Rad1 {[%clk 0:01:43.6]}
19... Kg8 {[%clk 0:00:41.1]} 20. f4 {[%clk 0:01:42.7]} 20... Be6 {[%clk
0:00:38.1]} 21. g4 {[%clk 0:01:37.1]} 21... fxg4 {[%clk 0:00:27.1]} 22. Bxe4
{[%clk 0:01:35.1]} 22... Raf8 {[%clk 0:00:26.3]} 23. e3 {[%clk 0:01:34.5]} 23...
Rh6 {[%clk 0:00:23]} 24. f5 {[%clk 0:01:21.7]} 24... Qh4 {[%clk 0:00:18.6]} 25.
Qc2 {[%clk 0:01:07]} 25... Nc5 {[%clk 0:00:15.4]} 26. fxe6 {[%clk 0:00:51.4]}
26... Rxf1+ {[%clk 0:00:12]} 27. Rxf1 {[%clk 0:00:52.3]} 27... Nxe4 {[%clk
0:00:11]} 28. e7 {[%clk 0:00:48.3]} 28... Qxe7 {[%clk 0:00:09.4]} 29. Qxe4
{[%clk 0:00:47.8]} 29... g3 {[%clk 0:00:05.6]} 30. hxg3 {[%clk 0:00:46.9]} 30...
Re6 {[%clk 0:00:03.5]} 31. Qg4+ {[%clk 0:00:46.1]} 31... Qg7 {[%clk 0:00:02.5]}
32. Qxe6+ {[%clk 0:00:45.6]} 1-0

[Event "*** Titled Tuesday Blitz"]
[Site "Chess.com"]
[Date "2020.05.12"]
[Round "3"]
[White "Pintacara"]
[Black "AminMolaei"]
[Result "0-1"]
[WhiteElo "2310"]
[BlackElo "2528"]
[TimeControl "180+1"]
[EndTime "10:27:36 PDT"]
[Termination "AminMolaei won on time"]

1. d4 {[%clk 0:03:00.9]} 1... e6 {[%clk 0:02:56.1]} 2. c4 {[%clk 0:02:50.5]}
2... b6 {[%clk 0:02:56.4]} 3. Nc3 {[%clk 0:02:46]} 3... Bb7 {[%clk 0:02:56.2]}
4. Nf3 {[%clk 0:02:28.7]} 4... f5 {[%clk 0:02:54]} 5. g3 {[%clk 0:02:27.4]} 5...
Bb4 {[%clk 0:02:50]} 6. Bg2 {[%clk 0:02:26.3]} 6... Nf6 {[%clk 0:02:48.8]} 7.
O-O {[%clk 0:02:25.6]} 7... O-O {[%clk 0:02:48.1]} 8. Bd2 {[%clk 0:02:21.2]}
8... Be7 {[%clk 0:02:46.4]} 9. Rb1 {[%clk 0:02:07.5]} 9... a5 {[%clk 0:02:44.6]}
10. a3 {[%clk 0:02:06.9]} 10... Na6 {[%clk 0:02:41.1]} 11. Qc1 {[%clk
0:01:37.3]} 11... Ne4 {[%clk 0:02:40.3]} 12. Rd1 {[%clk 0:01:30.6]} 12... Bf6
{[%clk 0:02:40]} 13. Be1 {[%clk 0:01:28.7]} 13... Nxc3 {[%clk 0:02:37.2]} 14.
Bxc3 {[%clk 0:01:27.7]} 14... Be4 {[%clk 0:02:38.1]} 15. Ra1 {[%clk 0:01:26.5]}
15... a4 {[%clk 0:02:28.8]} 16. Ne1 {[%clk 0:01:21.2]} 16... Bxg2 {[%clk
0:02:27.8]} 17. Nxg2 {[%clk 0:01:22.1]} 17... d6 {[%clk 0:02:27.6]} 18. Qc2
{[%clk 0:01:19.9]} 18... Qd7 {[%clk 0:02:26.6]} 19. b3 {[%clk 0:01:18.8]} 19...
axb3 {[%clk 0:02:25.5]} 20. Qxb3 {[%clk 0:01:19.7]} 20... Nb8 {[%clk 0:02:24.7]}
21. a4 {[%clk 0:01:18.9]} 21... Nc6 {[%clk 0:02:24.5]} 22. Qb5 {[%clk
0:01:16.9]} 22... Qe8 {[%clk 0:02:18.7]} 23. e3 {[%clk 0:01:11]} 23... Na5
{[%clk 0:02:15.9]} 24. Nf4 {[%clk 0:00:50]} 24... Kf7 {[%clk 0:02:08.7]} 25.
Rac1 {[%clk 0:00:43.1]} 25... g5 {[%clk 0:02:04.8]} 26. Ng2 {[%clk 0:00:33]}
26... Qxb5 {[%clk 0:02:00.8]} 27. cxb5 {[%clk 0:00:33.9]} 27... Rfc8 {[%clk
0:01:40.7]} 28. d5 {[%clk 0:00:24.9]} 28... Nb3 {[%clk 0:01:37.8]} 29. Rc2
{[%clk 0:00:17.8]} 29... Rxa4 {[%clk 0:01:30.7]} 30. Bxf6 {[%clk 0:00:15.4]}
30... Kxf6 {[%clk 0:01:31.6]} 31. dxe6 {[%clk 0:00:15.9]} 31... Kxe6 {[%clk
0:01:32.4]} 32. h4 {[%clk 0:00:14.3]} 32... h6 {[%clk 0:01:31.5]} 33. Rd3 {[%clk
0:00:11.8]} 33... Nc5 {[%clk 0:01:31.1]} 34. Rdc3 {[%clk 0:00:09.2]} 34... Ra1+
{[%clk 0:01:30.8]} 35. Kh2 {[%clk 0:00:08.9]} 35... Rca8 {[%clk 0:01:30.9]} 36.
Rc4 {[%clk 0:00:05.6]} 36... Rb1 {[%clk 0:01:30.3]} 37. g4 {[%clk 0:00:04.2]}
37... Raa1 {[%clk 0:01:28.8]} 38. gxf5+ {[%clk 0:00:03.8]} 38... Kxf5 {[%clk
0:01:29.7]} 39. Kg3 {[%clk 0:00:04.3]} 39... Ne4+ {[%clk 0:01:28.6]} 40. Kf3
{[%clk 0:00:03.5]} 40... g4+ {[%clk 0:01:28.1]} 41. Ke2 {[%clk 0:00:03.1]} 41...
Rg1 {[%clk 0:01:24.8]} 42. Nf4 {[%clk 0:00:02.4]} 42... Rge1+ {[%clk 0:01:23.4]}
0-1

[Event "*** Titled Tuesday Blitz"]
[Site "Chess.com"]
[Date "2020.05.12"]
[Round "3"]
[White "pfalcon1949"]
[Black "FM_VS99"]
[Result "0-1"]
[WhiteElo "1988"]
[BlackElo "2383"]
[TimeControl "180+1"]
[EndTime "10:27:36 PDT"]
[Termination "FM_VS99 won on time"]

1. d4 {[%clk 0:01:51.6]} 1... g6 {[%clk 0:03:00.9]} 2. c4 {[%clk 0:01:50.9]}
2... Bg7 {[%clk 0:03:00.4]} 3. Nc3 {[%clk 0:01:51.4]} 3... d6 {[%clk 0:03:01]}
4. e4 {[%clk 0:01:51.7]} 4... e5 {[%clk 0:03:01.6]} 5. d5 {[%clk 0:01:50]} 5...
a5 {[%clk 0:03:00.8]} 6. Nge2 {[%clk 0:01:50.9]} 6... Na6 {[%clk 0:02:58.8]} 7.
Ng3 {[%clk 0:01:50.1]} 7... h5 {[%clk 0:02:54.2]} 8. h4 {[%clk 0:01:48.6]} 8...
Bf6 {[%clk 0:02:51.4]} 9. Be2 {[%clk 0:01:48.9]} 9... Bxh4 {[%clk 0:02:51.1]}
10. Nf1 {[%clk 0:01:39.3]} 10... Nc5 {[%clk 0:02:49.5]} 11. Be3 {[%clk
0:01:38.9]} 11... b6 {[%clk 0:02:48.3]} 12. g3 {[%clk 0:01:37.4]} 12... Bg5
{[%clk 0:02:48.3]} 13. Qd2 {[%clk 0:01:37.8]} 13... Bxe3 {[%clk 0:02:47.5]} 14.
Nxe3 {[%clk 0:01:37.5]} 14... Nf6 {[%clk 0:02:45]} 15. f3 {[%clk 0:01:35]} 15...
Bd7 {[%clk 0:02:38.8]} 16. O-O-O {[%clk 0:01:34.8]} 16... a4 {[%clk 0:02:37.8]}
17. Bd3 {[%clk 0:01:28.9]} 17... Ra5 {[%clk 0:02:32.2]} 18. f4 {[%clk
0:01:27.1]} 18... Ng4 {[%clk 0:02:25.6]} 19. Rdf1 {[%clk 0:01:11.6]} 19... exf4
{[%clk 0:02:00.6]} 20. Nxg4 {[%clk 0:01:06]} 20... Bxg4 {[%clk 0:01:58.3]} 21.
gxf4 {[%clk 0:01:06.3]} 21... Qe7 {[%clk 0:01:45.3]} 22. e5 {[%clk 0:01:03.4]}
22... dxe5 {[%clk 0:01:35.1]} 23. fxe5 {[%clk 0:00:57.9]} 23... Nd7 {[%clk
0:01:34.9]} 24. e6 {[%clk 0:00:48.9]} 24... fxe6 {[%clk 0:01:35.5]} 25. Bxg6+
{[%clk 0:00:46]} 25... Kd8 {[%clk 0:01:35.5]} 26. Rf7 {[%clk 0:00:45.2]} 26...
Qd6 {[%clk 0:01:30.4]} 27. Qg5+ {[%clk 0:00:39]} 27... Kc8 {[%clk 0:01:30.3]}
28. Bxh5 {[%clk 0:00:29.6]} 28... Bxh5 {[%clk 0:01:24.9]} 29. Rxh5 {[%clk
0:00:28.7]} 29... Rxh5 {[%clk 0:01:24.3]} 30. Qxh5 {[%clk 0:00:26]} 30... exd5
{[%clk 0:01:24.5]} 31. Qh8+ {[%clk 0:00:12.1]} 31... Kb7 {[%clk 0:01:22.4]} 32.
Qd8 {[%clk 0:00:05.2]} 32... Qh6+ {[%clk 0:00:53.1]} 33. Kc2 {[%clk 0:00:02.8]}
33... Qg6+ {[%clk 0:00:52.8]} 34. Kc1 {[%clk 0:00:01.1]} 34... Qxf7 {[%clk
0:00:52.7]} 0-1

[Event "*** Titled Tuesday Blitz"]
[Site "Chess.com"]
[Date "2020.05.12"]
[Round "3"]
[White "SGchess01"]
[Black "SahaNeelash"]
[Result "1-0"]
[WhiteElo "2774"]
[BlackElo "2517"]
[TimeControl "180+1"]
[EndTime "10:27:38 PDT"]
[Termination "SGchess01 won by resignation"]

1. e4 {[%clk 0:02:59.6]} 1... c6 {[%clk 0:03:00.2]} 2. d3 {[%clk 0:02:56.6]}
2... d5 {[%clk 0:03:00.5]} 3. Nf3 {[%clk 0:02:57.3]} 3... dxe4 {[%clk
0:03:00.6]} 4. dxe4 {[%clk 0:02:58.1]} 4... Qxd1+ {[%clk 0:03:00.3]} 5. Kxd1
{[%clk 0:02:59]} 5... Nf6 {[%clk 0:03:00.6]} 6. Nfd2 {[%clk 0:02:58.4]} 6... Ng4
{[%clk 0:02:59.3]} 7. Ke1 {[%clk 0:02:57.6]} 7... e5 {[%clk 0:02:58.8]} 8. Nc4
{[%clk 0:02:50.2]} 8... b5 {[%clk 0:02:57.5]} 9. Ne3 {[%clk 0:02:49.7]} 9... Nf6
{[%clk 0:02:56.6]} 10. f3 {[%clk 0:02:49.5]} 10... Bc5 {[%clk 0:02:56.1]} 11. a4
{[%clk 0:02:48.9]} 11... Bd7 {[%clk 0:02:51.4]} 12. axb5 {[%clk 0:02:47.3]}
12... cxb5 {[%clk 0:02:51.2]} 13. Nc3 {[%clk 0:02:47.9]} 13... b4 {[%clk
0:02:40.8]} 14. Ncd5 {[%clk 0:02:48]} 14... Bxe3 {[%clk 0:02:29.1]} 15. Bxe3
{[%clk 0:02:03.4]} 15... Nxd5 {[%clk 0:02:09.4]} 16. exd5 {[%clk 0:02:04.3]}
16... Bf5 {[%clk 0:02:09.3]} 17. Bb5+ {[%clk 0:01:52.2]} 17... Bd7 {[%clk
0:02:07.3]} 18. Bd3 {[%clk 0:01:46.8]} 18... O-O {[%clk 0:02:06.2]} 19. Rxa7
{[%clk 0:01:43.8]} 19... Rxa7 {[%clk 0:02:05.7]} 20. Bxa7 {[%clk 0:01:44.7]}
20... Rc8 {[%clk 0:02:04.7]} 21. Kd2 {[%clk 0:01:44.1]} 21... f6 {[%clk
0:02:02.9]} 22. Ra1 {[%clk 0:01:41.5]} 22... Be8 {[%clk 0:02:02.8]} 23. c4
{[%clk 0:01:19.6]} 23... bxc3+ {[%clk 0:02:00.8]} 24. bxc3 {[%clk 0:01:20.5]}
24... Nd7 {[%clk 0:01:59.1]} 25. c4 {[%clk 0:01:11.1]} 25... g6 {[%clk 0:01:59]}
26. Be3 {[%clk 0:01:04.7]} 26... f5 {[%clk 0:01:57.7]} 27. Ra7 {[%clk 0:01:03]}
27... h5 {[%clk 0:01:35.9]} 28. h4 {[%clk 0:01:01.8]} 28... e4 {[%clk
0:01:32.2]} 29. fxe4 {[%clk 0:00:56.3]} 29... fxe4 {[%clk 0:01:33.1]} 30. Be2
{[%clk 0:00:55.8]} 30... Ne5 {[%clk 0:01:24.1]} 31. c5 {[%clk 0:00:55.4]} 31...
Bf7 {[%clk 0:01:24.4]} 32. d6 {[%clk 0:00:53.5]} 32... Nc6 {[%clk 0:01:14.2]}
33. Rb7 {[%clk 0:00:39.5]} 33... Bd5 {[%clk 0:01:12.6]} 34. d7 {[%clk
0:00:34.4]} 34... Rd8 {[%clk 0:01:12.4]} 35. Bg5 {[%clk 0:00:34.3]} 35... Ne5
{[%clk 0:01:12.1]} 36. Bxd8 {[%clk 0:00:23.6]} 36... Bxb7 {[%clk 0:01:11.8]} 37.
Bb5 {[%clk 0:00:24.2]} 37... e3+ {[%clk 0:00:54.4]} 38. Kxe3 {[%clk 0:00:20.6]}
38... Bxg2 {[%clk 0:00:55.3]} 39. Bf6 {[%clk 0:00:18.6]} 1-0

[Event "*** Titled Tuesday Blitz"]
[Site "Chess.com"]
[Date "2020.05.12"]
[Round "3"]
[White "Olga_Girya"]
[Black "Perecke"]
[Result "1-0"]
[WhiteElo "2420"]
[BlackElo "2194"]
[TimeControl "180+1"]
[EndTime "10:27:38 PDT"]
[Termination "Olga_Girya won on time"]

1. d4 {[%clk 0:02:58.3]} 1... d5 {[%clk 0:02:56.5]} 2. c4 {[%clk 0:02:58.1]}
2... e6 {[%clk 0:02:56.2]} 3. Nf3 {[%clk 0:02:57.9]} 3... Nf6 {[%clk 0:02:53.1]}
4. Nc3 {[%clk 0:02:58]} 4... Be7 {[%clk 0:02:53]} 5. Bf4 {[%clk 0:02:57.7]} 5...
O-O {[%clk 0:02:52.7]} 6. e3 {[%clk 0:02:57.9]} 6... Nbd7 {[%clk 0:02:52.5]} 7.
a3 {[%clk 0:02:53.1]} 7... dxc4 {[%clk 0:02:38.1]} 8. Bxc4 {[%clk 0:02:52.5]}
8... b6 {[%clk 0:02:35.1]} 9. O-O {[%clk 0:02:49.4]} 9... Bb7 {[%clk 0:02:34.1]}
10. Qe2 {[%clk 0:02:47.6]} 10... c5 {[%clk 0:02:30.7]} 11. Rfd1 {[%clk
0:02:47.3]} 11... cxd4 {[%clk 0:02:24.7]} 12. exd4 {[%clk 0:02:38.5]} 12... Rc8
{[%clk 0:01:56.5]} 13. Ba6 {[%clk 0:02:12.5]} 13... Bxa6 {[%clk 0:01:34.8]} 14.
Qxa6 {[%clk 0:02:13.4]} 14... Nb8 {[%clk 0:01:29.7]} 15. Qxa7 {[%clk 0:02:05.8]}
15... Nc6 {[%clk 0:01:27.1]} 16. Qa6 {[%clk 0:02:06]} 16... Nd5 {[%clk 0:00:48]}
17. Nxd5 {[%clk 0:02:05.8]} 17... Qxd5 {[%clk 0:00:48.9]} 18. Qxb6 {[%clk
0:02:02.9]} 18... g5 {[%clk 0:00:35.9]} 19. Bg3 {[%clk 0:01:54.2]} 19... f5
{[%clk 0:00:26.4]} 20. Be5 {[%clk 0:01:40.5]} 20... g4 {[%clk 0:00:20.5]} 21.
Nd2 {[%clk 0:01:37.9]} 21... Nxe5 {[%clk 0:00:18.1]} 22. dxe5 {[%clk 0:01:37.7]}
22... Bc5 {[%clk 0:00:17.8]} 23. Qa6 {[%clk 0:01:30.6]} 23... Qxe5 {[%clk
0:00:15.1]} 24. Re1 {[%clk 0:01:13.6]} 24... Qxb2 {[%clk 0:00:15]} 25. Qxe6+
{[%clk 0:01:11.6]} 25... Kg7 {[%clk 0:00:14.2]} 26. Ra2 {[%clk 0:00:59.9]} 26...
Qd4 {[%clk 0:00:05.4]} 27. Nb3 {[%clk 0:00:59.1]} 27... Qd6 {[%clk 0:00:01.7]}
28. Qxd6 {[%clk 0:00:56.8]} 28... Bxd6 {[%clk 0:00:02.6]} 29. Nd4 {[%clk
0:00:57]} 29... Rfe8 {[%clk 0:00:01.8]} 30. Nxf5+ {[%clk 0:00:46.3]} 30... Kf6
{[%clk 0:00:01.7]} 31. Ne3 {[%clk 0:00:44.2]} 1-0

[Event "*** Titled Tuesday Blitz"]
[Site "Chess.com"]
[Date "2020.05.12"]
[Round "3"]
[White "krstulov_alex"]
[Black "CroissantNeuf"]
[Result "1-0"]
[WhiteElo "2551"]
[BlackElo "2354"]
[TimeControl "180+1"]
[EndTime "10:27:39 PDT"]
[Termination "krstulov_alex won by resignation"]

1. d4 {[%clk 0:03:00.9]} 1... Nf6 {[%clk 0:02:58.7]} 2. c4 {[%clk 0:03:00.4]}
2... e6 {[%clk 0:02:59.3]} 3. Nf3 {[%clk 0:03:00.4]} 3... c5 {[%clk 0:02:59.4]}
4. d5 {[%clk 0:03:00.3]} 4... d6 {[%clk 0:03:00]} 5. Nc3 {[%clk 0:03:00.5]} 5...
exd5 {[%clk 0:03:00.4]} 6. cxd5 {[%clk 0:03:01.4]} 6... g6 {[%clk 0:03:00.8]} 7.
Nd2 {[%clk 0:03:02.1]} 7... Bg7 {[%clk 0:03:00.4]} 8. e4 {[%clk 0:03:02.7]} 8...
O-O {[%clk 0:02:59.5]} 9. Be2 {[%clk 0:03:01.8]} 9... Re8 {[%clk 0:02:58.2]} 10.
O-O {[%clk 0:03:02.4]} 10... Nbd7 {[%clk 0:02:58.4]} 11. a4 {[%clk 0:03:01.4]}
11... a6 {[%clk 0:02:57.9]} 12. f4 {[%clk 0:03:00.6]} 12... c4 {[%clk
0:02:50.9]} 13. Kh1 {[%clk 0:03:00.1]} 13... Nc5 {[%clk 0:02:45]} 14. e5 {[%clk
0:02:59.4]} 14... dxe5 {[%clk 0:02:41.4]} 15. fxe5 {[%clk 0:02:59.8]} 15... Rxe5
{[%clk 0:02:28.2]} 16. Nxc4 {[%clk 0:02:55.8]} 16... Re8 {[%clk 0:02:15.4]} 17.
Bf4 {[%clk 0:02:27.4]} 17... Nfe4 {[%clk 0:02:05.8]} 18. Nxe4 {[%clk 0:02:20.1]}
18... Nxe4 {[%clk 0:02:04.2]} 19. a5 {[%clk 0:02:14.1]} 19... g5 {[%clk
0:01:11.9]} 20. Be3 {[%clk 0:01:47.9]} 20... Bd7 {[%clk 0:00:49.3]} 21. Bh5
{[%clk 0:01:37.8]} 21... Rf8 {[%clk 0:00:24.7]} 22. Qf3 {[%clk 0:01:37.5]} 22...
f5 {[%clk 0:00:24]} 23. Nb6 {[%clk 0:01:24.7]} 23... g4 {[%clk 0:00:23.2]} 24.
Bxg4 {[%clk 0:01:22.3]} 24... fxg4 {[%clk 0:00:21]} 25. Qxe4 {[%clk 0:01:22.3]}
25... Rxf1+ {[%clk 0:00:19.5]} 26. Rxf1 {[%clk 0:01:23.2]} 26... Bb5 {[%clk
0:00:19.7]} 27. Qe6+ {[%clk 0:01:21]} 27... Kh8 {[%clk 0:00:19.2]} 28. Rf7
{[%clk 0:01:21.6]} 28... Rb8 {[%clk 0:00:17.9]} 29. Rxg7 {[%clk 0:01:21.7]}
29... Kxg7 {[%clk 0:00:16.5]} 30. Bd4+ {[%clk 0:01:22.1]} 30... Kf8 {[%clk
0:00:17.1]} 31. Qh6+ {[%clk 0:01:17.4]} 31... Ke8 {[%clk 0:00:15]} 32. Qh5+
{[%clk 0:01:15.6]} 32... Kf8 {[%clk 0:00:12.8]} 33. Qf5+ {[%clk 0:01:15.5]}
33... Ke8 {[%clk 0:00:10.8]} 34. Bc5 {[%clk 0:00:40.6]} 1-0

[Event "*** Titled Tuesday Blitz"]
[Site "Chess.com"]
[Date "2020.05.12"]
[Round "3"]
[White "DenishevM"]
[Black "Ginzburg_Yakov"]
[Result "1-0"]
[WhiteElo "2584"]
[BlackElo "2387"]
[TimeControl "180+1"]
[EndTime "10:27:41 PDT"]
[Termination "DenishevM won by checkmate"]

1. Nf3 {[%clk 0:03:00.7]} 1... Nf6 {[%clk 0:02:58.9]} 2. c4 {[%clk 0:02:58.5]}
2... c6 {[%clk 0:02:58.9]} 3. d4 {[%clk 0:02:58.5]} 3... d5 {[%clk 0:02:59.6]}
4. Nc3 {[%clk 0:02:58.3]} 4... dxc4 {[%clk 0:02:59.7]} 5. a4 {[%clk 0:02:58.3]}
5... Bf5 {[%clk 0:02:59.9]} 6. Ne5 {[%clk 0:02:56.9]} 6... e6 {[%clk 0:03:00.4]}
7. f3 {[%clk 0:02:55.6]} 7... Bb4 {[%clk 0:03:00.6]} 8. Nxc4 {[%clk 0:02:45.9]}
8... Nd5 {[%clk 0:03:00.5]} 9. Bd2 {[%clk 0:02:03.1]} 9... Nb6 {[%clk
0:02:54.5]} 10. e4 {[%clk 0:01:56]} 10... Nxc4 {[%clk 0:02:46.8]} 11. Bxc4
{[%clk 0:01:56.9]} 11... Qxd4 {[%clk 0:02:46.3]} 12. Qb3 {[%clk 0:01:55.8]}
12... Bc5 {[%clk 0:02:16.8]} 13. exf5 {[%clk 0:01:39.8]} 13... Qf2+ {[%clk
0:02:15.7]} 14. Kd1 {[%clk 0:01:40.2]} 14... Qxg2 {[%clk 0:02:03.3]} 15. Kc2
{[%clk 0:01:36.9]} 15... O-O {[%clk 0:01:56]} 16. fxe6 {[%clk 0:01:22.4]} 16...
fxe6 {[%clk 0:01:55.9]} 17. Qxb7 {[%clk 0:01:11.8]} 17... Nd7 {[%clk 0:01:48.4]}
18. Qxd7 {[%clk 0:01:10.1]} 18... Rad8 {[%clk 0:01:43]} 19. Qxe6+ {[%clk
0:01:10.2]} 19... Kh8 {[%clk 0:01:42.8]} 20. Rad1 {[%clk 0:01:09.1]} 20... Rxd2+
{[%clk 0:01:40.5]} 21. Rxd2 {[%clk 0:01:06.7]} 21... Qxh1 {[%clk 0:01:41.1]} 22.
Ne4 {[%clk 0:01:00.3]} 22... Qg1 {[%clk 0:01:22.6]} 23. Nxc5 {[%clk 0:00:38.7]}
23... Qxc5 {[%clk 0:01:22.2]} 24. b3 {[%clk 0:00:37.9]} 24... h6 {[%clk
0:01:17]} 25. Kb2 {[%clk 0:00:37.1]} 25... Qg5 {[%clk 0:01:06.4]} 26. Qd6 {[%clk
0:00:33.2]} 26... Qf5 {[%clk 0:00:53.3]} 27. Qxc6 {[%clk 0:00:30.1]} 27... Qe5+
{[%clk 0:00:50.8]} 28. Ka2 {[%clk 0:00:29.4]} 28... Qc3 {[%clk 0:00:48]} 29. Qd5
{[%clk 0:00:27.6]} 29... Rxf3 {[%clk 0:00:43.4]} 30. Qg8# {[%clk 0:00:24.6]} 1-0

[Event "*** Titled Tuesday Blitz"]
[Site "Chess.com"]
[Date "2020.05.12"]
[Round "3"]
[White "Redbandit87"]
[Black "Rhinos1"]
[Result "0-1"]
[WhiteElo "2368"]
[BlackElo "2182"]
[TimeControl "180+1"]
[EndTime "10:27:42 PDT"]
[Termination "Rhinos1 won by checkmate"]

1. d4 {[%clk 0:03:00.9]} 1... d5 {[%clk 0:02:57.5]} 2. Bf4 {[%clk 0:03:00.6]}
2... c6 {[%clk 0:02:57]} 3. e3 {[%clk 0:03:00.2]} 3... Nf6 {[%clk 0:02:54.1]} 4.
c4 {[%clk 0:03:00.4]} 4... e6 {[%clk 0:02:53.9]} 5. Nc3 {[%clk 0:03:00.4]} 5...
Bd6 {[%clk 0:02:53.4]} 6. Bg3 {[%clk 0:02:56.4]} 6... O-O {[%clk 0:02:52.9]} 7.
Nf3 {[%clk 0:02:50.2]} 7... Qc7 {[%clk 0:02:46.3]} 8. c5 {[%clk 0:02:47.5]} 8...
Bxg3 {[%clk 0:02:45]} 9. hxg3 {[%clk 0:02:48.4]} 9... Nbd7 {[%clk 0:02:41.7]}
10. Bd3 {[%clk 0:02:47.9]} 10... e5 {[%clk 0:02:39.8]} 11. Be2 {[%clk
0:02:40.4]} 11... e4 {[%clk 0:02:36.1]} 12. Nd2 {[%clk 0:02:31.8]} 12... Re8
{[%clk 0:02:34]} 13. Qc2 {[%clk 0:02:29.5]} 13... Nf8 {[%clk 0:02:33.3]} 14.
O-O-O {[%clk 0:02:28.6]} 14... b6 {[%clk 0:02:29.4]} 15. Na4 {[%clk 0:02:22.9]}
15... b5 {[%clk 0:02:28.6]} 16. Nc3 {[%clk 0:02:19.1]} 16... a5 {[%clk
0:02:28.5]} 17. Kb1 {[%clk 0:02:08.4]} 17... a4 {[%clk 0:02:27.5]} 18. Bxb5
{[%clk 0:01:57.6]} 18... cxb5 {[%clk 0:02:24.7]} 19. Nxb5 {[%clk 0:01:58.5]}
19... Qa5 {[%clk 0:02:16.3]} 20. Nd6 {[%clk 0:01:57.6]} 20... Re7 {[%clk
0:02:10.8]} 21. Nxc8 {[%clk 0:01:48.9]} 21... Rxc8 {[%clk 0:02:09.4]} 22. Ka1
{[%clk 0:01:49.5]} 22... Ng4 {[%clk 0:01:53.8]} 23. Nb1 {[%clk 0:01:49]} 23...
Rb7 {[%clk 0:01:50.5]} 24. Nc3 {[%clk 0:01:46.6]} 24... a3 {[%clk 0:01:38.9]}
25. Nxd5 {[%clk 0:01:00.5]} 25... Rxb2 {[%clk 0:01:23.4]} 26. Qc4 {[%clk
0:00:55.4]} 26... Rc7 {[%clk 0:01:07.2]} 27. Nxc7 {[%clk 0:00:52.6]} 27... Qxc7
{[%clk 0:01:06.6]} 28. d5 {[%clk 0:00:45.2]} 28... Nxf2 {[%clk 0:01:00.3]} 29.
d6 {[%clk 0:00:43.3]} 29... Qb8 {[%clk 0:00:55.7]} 30. c6 {[%clk 0:00:35.7]}
30... Nxd1 {[%clk 0:00:33.7]} 31. Rxd1 {[%clk 0:00:33]} 31... Rxg2 {[%clk
0:00:27.7]} 32. d7 {[%clk 0:00:14.5]} 32... Qb2# {[%clk 0:00:26.2]} 0-1

[Event "*** Titled Tuesday Blitz"]
[Site "Chess.com"]
[Date "2020.05.12"]
[Round "3"]
[White "RestartingChess"]
[Black "Nastya_Rakhmangulova"]
[Result "1-0"]
[WhiteElo "2515"]
[BlackElo "2279"]
[TimeControl "180+1"]
[EndTime "10:27:43 PDT"]
[Termination "RestartingChess won on time"]

1. e4 {[%clk 0:03:00.9]} 1... d5 {[%clk 0:03:00.2]} 2. exd5 {[%clk 0:02:59.4]}
2... Qxd5 {[%clk 0:03:01.1]} 3. Nc3 {[%clk 0:03:00]} 3... Qd6 {[%clk 0:03:01.8]}
4. Nf3 {[%clk 0:03:00.2]} 4... Nf6 {[%clk 0:03:02.3]} 5. g3 {[%clk 0:03:00.7]}
5... Bg4 {[%clk 0:03:02.6]} 6. Bg2 {[%clk 0:03:01.1]} 6... Nc6 {[%clk
0:03:03.2]} 7. O-O {[%clk 0:03:01.4]} 7... a6 {[%clk 0:03:03.5]} 8. d3 {[%clk
0:03:01.8]} 8... O-O-O {[%clk 0:03:03.9]} 9. Bf4 {[%clk 0:03:02.2]} 9... e5
{[%clk 0:03:03.9]} 10. Bg5 {[%clk 0:03:00.7]} 10... Be7 {[%clk 0:02:54]} 11. Qe1
{[%clk 0:02:50.3]} 11... Bxf3 {[%clk 0:02:46.4]} 12. Bxf3 {[%clk 0:02:50.3]}
12... Nd4 {[%clk 0:02:46.9]} 13. Qd1 {[%clk 0:02:22.2]} 13... h6 {[%clk
0:02:08.2]} 14. Be3 {[%clk 0:02:17.7]} 14... Nxf3+ {[%clk 0:01:54.7]} 15. Qxf3
{[%clk 0:02:18.6]} 15... Qe6 {[%clk 0:01:55.1]} 16. b4 {[%clk 0:02:11.2]} 16...
Bxb4 {[%clk 0:01:27.3]} 17. Ne4 {[%clk 0:01:48.9]} 17... Nd5 {[%clk 0:00:47.9]}
18. Rab1 {[%clk 0:01:43.5]} 18... f5 {[%clk 0:00:47]} 19. Nc5 {[%clk 0:01:36.1]}
19... Bxc5 {[%clk 0:00:40.8]} 20. Bxc5 {[%clk 0:01:37]} 20... e4 {[%clk
0:00:41.4]} 21. dxe4 {[%clk 0:01:31]} 21... fxe4 {[%clk 0:00:42.3]} 22. Qb3
{[%clk 0:01:31.1]} 22... Qc6 {[%clk 0:00:42.9]} 23. Bd4 {[%clk 0:01:28]} 23...
h5 {[%clk 0:00:26.3]} 24. h4 {[%clk 0:01:11.3]} 24... Rhg8 {[%clk 0:00:25.7]}
25. Rfe1 {[%clk 0:01:07.3]} 25... Nf6 {[%clk 0:00:21.9]} 26. Be3 {[%clk
0:00:55.5]} 26... Nd5 {[%clk 0:00:18.9]} 27. Bg5 {[%clk 0:00:54.9]} 27... Rde8
{[%clk 0:00:18.5]} 28. Rbd1 {[%clk 0:00:51.6]} 28... Nf6 {[%clk 0:00:13.8]} 29.
Rd4 {[%clk 0:00:43.8]} 29... Ng4 {[%clk 0:00:12.9]} 30. Rc4 {[%clk 0:00:41.8]}
30... Qe6 {[%clk 0:00:07.1]} 31. Rcxe4 {[%clk 0:00:39.1]} 31... Qxb3 {[%clk
0:00:03.8]} 32. Rxe8+ {[%clk 0:00:39.4]} 32... Rxe8 {[%clk 0:00:03.9]} 33. Rxe8+
{[%clk 0:00:40.3]} 33... Kd7 {[%clk 0:00:04.6]} 34. Rd8+ {[%clk 0:00:41.2]} 1-0